fUSD/lending_fUSD_20260414
["ID","MTS","AMOUNT","RATE_DAILY","PERIOD"]
[420474503,1776130507768,500.0,0.00010098,2]
[420474504,1776130510183,500.0,0.00010098,2]
[420474505,1776130515974,738.9,0.000165,30]
[420474506,1776130533082,616.4,9.475e-05,2]
[420474507,1776130561709,150.0,0.00010098,2]
[420474508,1776130565662,500.0,0.00010098,2]
[420474509,1776130567421,500.0,0.00010098,2]
[420474510,1776130567468,344.76262856,0.00010098,2]
[420474511,1776130567508,500.0,0.00010098,2]
[420474512,1776130567558,500.0,0.00010098,2]
[420474513,1776130567672,244.0,0.00010099,2]
[420474514,1776130567729,2114.43432261,9.476e-05,2]
[420474515,1776130567753,8434.59567739,9.476e-05,2]
[420474516,1776130570853,-3238.03953432,0.00010099,2]
[420474517,1776130570876,-10000.01,0.00010099,2]
[420474518,1776130570904,-10000.01,0.00010099,2]
[420474519,1776130572489,-10000.01,0.00010099,2]
[420474520,1776130572595,-10000.01,0.00010099,2]
[420474521,1776130572723,-10000.01,0.00010099,2]
[420474522,1776130572919,-10000.01,0.00010099,2]
[420474523,1776130573030,-10000.01,0.00010099,2]
[420474524,1776130583753,324.96987836,0.00010098,2]
[420474525,1776130596723,500.0,0.00010098,2]
[420474526,1776130596857,587.7385549,0.00010098,2]
[420474527,1776130597121,500.0,0.00010098,2]
[420474528,1776130609491,3087.30156674,9.999e-05,2]
[420474529,1776130609537,5000.01,9.999e-05,2]
[420474530,1776130609583,5000.01,9.999e-05,2]
[420474531,1776130609647,5000.01,9.999e-05,2]
[420474532,1776130609673,5000.01,9.999e-05,2]
[420474533,1776130609699,5000.01,9.999e-05,2]
[420474534,1776130609727,5000.01,9.999e-05,2]
[420474535,1776130609754,5000.01,9.999e-05,2]
[420474536,1776130609786,5000.01,9.999e-05,2]
[420474537,1776130610314,5000.01,9.999e-05,2]
[420474538,1776130610358,10000.01,9.999e-05,2]
[420474539,1776130610389,10000.01,9.999e-05,2]
[420474540,1776130610418,10000.01,9.999e-05,2]
[420474541,1776130610451,10000.01,9.999e-05,2]
[420474542,1776130610483,10000.01,9.999e-05,2]
[420474543,1776130610526,10000.01,9.999e-05,2]
[420474544,1776130610566,10000.01,9.999e-05,2]
[420474545,1776130610598,10000.01,9.999e-05,2]
[420474546,1776130610631,6119.37473326,9.999e-05,2]
[420474547,1776130627043,232.0,0.00010099,2]
[420474548,1776130627546,578.20924308,0.00010099,2]
[420474549,1776130631118,1428.38747117,0.00010099,2]
[420474550,1776130632524,1000.0,9.999e-05,2]
[420474551,1776130634024,642.03855249,0.00010099,2]
[420474552,1776130634052,5000.01,0.00010099,2]
[420474553,1776130634085,3910.11931298,0.00010099,2]
[420474554,1776130634158,209.40437684,0.00010099,2]
[420474555,1776130635895,500.0,0.00010099,2]
[420474556,1776130636137,312.94333084,0.00010098,2]
[420474557,1776130636202,67.54297934,0.00010099,2]
[420474558,1776130636228,432.45702066,0.00010099,2]
[420474559,1776130636701,500.0,0.00010099,2]
[420474560,1776130637326,500.0,0.00010099,2]
[420474561,1776130637520,743.50770149,0.00010099,2]
[420474562,1776130638061,500.0,0.00010099,2]
[420474563,1776130638543,500.0,0.00010099,2]
[420474564,1776130639139,500.0,0.00010099,2]
[420474565,1776130639614,174.61919141,0.00010099,2]
[420474566,1776130639704,209.40437684,0.00010099,2]
[420474567,1776130639889,500.0,0.00010099,2]
[420474568,1776130640455,440.0217096,0.00010099,2]
[420474569,1776130640480,59.9782904,0.00010099,2]
[420474570,1776130641072,500.0,0.00010099,2]
[420474571,1776130641719,500.0,0.00010099,2]
[420474572,1776130643767,151.0,0.00010099,2]
[420474573,1776130648955,235.75327194,0.00010099,2]
[420474574,1776130649408,244.476143,0.00010099,2]
[420474575,1776130649825,253.52176029,0.00010099,2]
[420474576,1776130650026,262.90206542,0.00010099,2]
[420474577,1776130650330,272.62944185,0.00010099,2]
[420474578,1776130650622,282.71673119,0.00010099,2]
[420474579,1776130650704,323.23566497,0.00010099,2]
[420474580,1776130651079,1913.79663094,0.00010093,2]
[420474581,1776130651121,586.20336906,0.00010093,2]
[420474582,1776130656194,-10000.01,0.00010099,2]
[420474583,1776130658374,-10000.01,0.00010099,2]
[420474584,1776130658393,-10000.01,0.00010099,2]
[420474585,1776130658447,-10000.01,0.00010099,2]
[420474586,1776130658472,-10000.01,0.00010099,2]
[420474587,1776130658553,-10000.01,0.00010099,2]
[420474588,1776130658609,-10000.01,0.00010099,2]
[420474589,1776130658717,-10000.01,0.00010099,2]
[420474590,1776130660040,386.4609361,0.00010099,2]
[420474591,1776130660136,-10000.01,0.00010099,2]
[420474592,1776130660156,-2068.47444753,0.00010099,2]
[420474593,1776130660167,-7931.53555247,0.00010099,2]
[420474594,1776130660203,151.0,0.00010099,2]
[420474595,1776130661003,-278.56526303,0.00010099,2]
[420474596,1776130661048,-9442.87947394,0.00010099,2]
[420474597,1776130661143,-10000.01,0.00010099,2]
[420474598,1776130661225,-10000.01,0.00010099,2]
[420474599,1776130667024,279.9045709,0.00010099,2]
[420474600,1776130683380,10000.01,9.999e-05,2]
[420474601,1776130683418,3596.44112394,9.999e-05,2]
[420474602,1776130683445,5000.01,9.999e-05,2]
[420474603,1776130683473,5000.01,9.999e-05,2]
[420474604,1776130683498,5000.01,9.999e-05,2]
[420474605,1776130683525,5000.01,9.999e-05,2]
[420474606,1776130683555,5000.01,9.999e-05,2]
[420474607,1776130683586,5000.01,9.999e-05,2]
[420474608,1776130683616,5000.01,9.999e-05,2]
[420474609,1776130683644,5000.01,9.999e-05,2]
[420474610,1776130683683,5000.01,9.999e-05,2]
[420474611,1776130683726,13927.65465703,9.999e-05,2]
[420474612,1776130698581,-3817.01,9.999e-05,2]
[420474613,1776130698642,-5000.01,9.999e-05,2]
[420474614,1776130700961,-5000.01,9.999e-05,2]
[420474615,1776130701089,-5000.01,9.999e-05,2]
[420474616,1776130701266,-5000.01,9.999e-05,2]
[420474617,1776130701390,-5000.01,9.999e-05,2]
[420474618,1776130701556,-5000.01,9.999e-05,2]
[420474619,1776130715611,-227.47891485,9.998e-05,2]
[420474620,1776130715674,-500.0,9.998e-05,2]
[420474621,1776130715745,-219.06033159,9.998e-05,2]
[420474622,1776130715841,-611.41698843,9.998e-05,2]
[420474623,1776130715893,-641.33383999,9.998e-05,2]
[420474624,1776130715937,-101.42985028,9.998e-05,2]
[420474625,1776130717719,-398.57014972,9.998e-05,2]
[420474626,1776130717780,-500.0,9.998e-05,2]
[420474627,1776130717856,-500.0,9.998e-05,2]
[420474628,1776130717913,-348.1055682,9.998e-05,2]
[420474629,1776130718138,-50.46458152,9.999e-05,2]
[420474630,1776130718156,-348.1055682,9.999e-05,2]
[420474631,1776130718178,-1506.65856416,9.999e-05,2]
[420474632,1776130732231,514.96,9e-05,2]
[420474633,1776130734611,-4485.05,9.999e-05,2]
[420474634,1776130735207,-5000.01,9.999e-05,2]
[420474635,1776130735413,-5000.01,9.999e-05,2]
[420474636,1776130735545,-5000.01,9.999e-05,2]
[420474637,1776130736093,-5000.01,9.999e-05,2]
[420474638,1776130736140,-5000.01,9.999e-05,2]
[420474639,1776130736277,-5000.01,9.999e-05,2]
[420474640,1776130736419,-5000.01,9.999e-05,2]
[420474641,1776130736530,-5000.01,9.999e-05,2]
[420474642,1776130743581,-5000.01,9.999e-05,2]
[420474643,1776130743716,-5000.01,9.999e-05,2]
[420474644,1776130743851,-5000.01,9.999e-05,2]
[420474645,1776130743965,-5000.01,9.999e-05,2]
[420474646,1776130744074,-5000.01,9.999e-05,2]
[420474647,1776130744166,-5000.01,9.999e-05,2]
[420474648,1776130744278,-5000.01,9.999e-05,2]
[420474649,1776130744446,-5000.01,9.999e-05,2]
[420474650,1776130744777,-5000.01,9.999e-05,2]
[420474651,1776130809819,568.15,9.451e-05,2]
[420474652,1776130986856,260.54,9.146e-05,2]
[420474653,1776131168367,187.90311768,9.475e-05,2]
[420474654,1776131331848,1634.06383039,9.457e-05,2]
[420474655,1776131331884,2538.35788961,9.457e-05,2]
[420474657,1776131368833,112.29905846,8.774e-05,2]
[420474658,1776131368863,2427.06094154,8.774e-05,2]
[420474659,1776131385816,223.59600653,8.774e-05,2]
[420474660,1776131385840,1376.40399347,8.774e-05,2]
[420474661,1776131397771,177.95,4.387e-05,2]
[420474662,1776131397944,177.95,4.618e-05,2]
[420474663,1776131398162,177.95,4.849e-05,2]
[420474664,1776131398385,177.95,5.079e-05,2]
[420474665,1776131399294,177.95,5.31e-05,2]
[420474666,1776131399497,177.95,5.541e-05,2]
[420474667,1776131399583,177.95,5.772e-05,2]
[420474668,1776131399627,28.6029546,6.003e-05,2]
[420474669,1776131399653,149.3470454,6.003e-05,2]
[420474670,1776131399786,177.95,6.234e-05,2]
[420474671,1776131399990,177.95,6.465e-05,2]
[420474672,1776131400250,177.95,6.696e-05,2]
[420474673,1776131400431,177.95,6.926e-05,2]
[420474674,1776131400709,177.95,7.157e-05,2]
[420474675,1776131400919,177.95,7.388e-05,2]
[420474676,1776131401125,177.95,7.619e-05,2]
[420474677,1776131401350,177.95,7.85e-05,2]
[420474678,1776131401577,177.95,8.081e-05,2]
[420474679,1776131401801,177.95,8.312e-05,2]
[420474680,1776131402019,177.95,8.543e-05,2]
[420474681,1776131402251,177.95,8.773e-05,2]
[420474688,1776131431803,-245.2262,9.505e-05,2]
[420474689,1776131431814,-168.25540874,9.505e-05,2]
[420474690,1776131431869,-118.74459126,9.505e-05,2]
[420474691,1776131431901,-192.24125793,9.614e-05,2]
[420474692,1776131431931,-6.75874207,9.614e-05,2]
[420474693,1776131431957,-3006.92301652,9.615e-05,2]
[420474694,1776131431966,-1200.0,9.615e-05,2]
[420474695,1776131431977,-150.0,9.616e-05,2]
[420474696,1776131431998,-150.20632008,9.616e-05,2]
[420474697,1776131432007,-150.0,9.616e-05,2]
[420474698,1776131432018,-150.0,9.616e-05,2]
[420474699,1776131432029,-150.0,9.616e-05,2]
[420474700,1776131432048,-150.0,9.616e-05,2]
[420474701,1776131432058,-150.0,9.616e-05,2]
[420474702,1776131432067,-150.0,9.616e-05,2]
[420474703,1776131432078,-150.0,9.616e-05,2]
[420474704,1776131432092,-150.0,9.616e-05,2]
[420474705,1776131432101,-150.0,9.616e-05,2]
[420474706,1776131432111,-150.0,9.616e-05,2]
[420474707,1776131432123,-201.10028587,9.616e-05,2]
[420474708,1776131432135,-150.0,9.616e-05,2]
[420474709,1776131432145,-150.0,9.616e-05,2]
[420474710,1776131432154,-150.0,9.631e-05,2]
[420474711,1776131432171,-150.0,9.635e-05,2]
[420474712,1776131432184,-150.0,9.636e-05,2]
[420474713,1776131432194,-150.0,9.637e-05,2]
[420474714,1776131432210,-150.0,9.64e-05,2]
[420474715,1776131432220,-150.0,9.641e-05,2]
[420474716,1776131432235,-150.0,9.646e-05,2]
[420474717,1776131432248,-150.0,9.653e-05,2]
[420474718,1776131432262,-150.0,9.655e-05,2]
[420474719,1776131432271,-150.0,9.658e-05,2]
[420474720,1776131432283,-150.0,9.661e-05,2]
[420474721,1776131432296,-150.0,9.664e-05,2]
[420474722,1776131432306,-150.0,9.665e-05,2]
[420474723,1776131432318,-150.0,9.665e-05,2]
[420474724,1776131432328,-150.0,9.667e-05,2]
[420474725,1776131432341,-150.0,9.671e-05,2]
[420474726,1776131432352,-150.0,9.675e-05,2]
[420474727,1776131432362,-150.0,9.676e-05,2]
[420474728,1776131432371,-150.0,9.678e-05,2]
[420474729,1776131432389,-202.84,9.681e-05,2]
[420474730,1776131432399,-150.0,9.688e-05,2]
[420474731,1776131432409,-150.0,9.689e-05,2]
[420474732,1776131432422,-150.0,9.689e-05,2]
[420474733,1776131432440,-150.0,9.691e-05,2]
[420474734,1776131432449,-150.0,9.693e-05,2]
[420474735,1776131432462,-150.0,9.694e-05,2]
[420474736,1776131432493,-150.0,9.699e-05,2]
[420474737,1776131432504,-500.0,9.7e-05,3]
[420474738,1776131432532,-200.0,9.7e-05,3]
[420474739,1776131432543,-5522.745199,9.702e-05,2]
[420474740,1776131432556,-3973.809299,9.702e-05,2]
[420474741,1776131432575,-918.503878,9.702e-05,2]
[420474742,1776131432599,-150.0,9.705e-05,2]
[420474744,1776131432612,-150.0,9.707e-05,2]
[420474746,1776131432630,-150.0,9.711e-05,2]
[420474747,1776131432643,-150.0,9.714e-05,2]
[420474748,1776131432656,-150.0,9.714e-05,2]
[420474749,1776131432674,-150.0,9.714e-05,2]
[420474750,1776131432685,-500.0,9.718e-05,2]
[420474751,1776131432698,-150.0,9.718e-05,2]
[420474752,1776131432717,-150.0,9.719e-05,2]
[420474753,1776131432729,-150.0,9.72e-05,2]
[420474754,1776131432742,-150.0,9.725e-05,2]
[420474755,1776131432762,-150.0,9.733e-05,2]
[420474756,1776131432775,-150.0,9.735e-05,2]
[420474757,1776131432788,-150.0,9.735e-05,2]
[420474758,1776131432804,-150.0,9.738e-05,2]
[420474759,1776131432817,-150.0,9.74e-05,2]
[420474760,1776131432830,-150.0,9.743e-05,2]
[420474761,1776131432844,-150.0,9.75e-05,2]
[420474762,1776131432857,-150.0,9.752e-05,2]
[420474763,1776131432870,-150.0,9.759e-05,2]
[420474764,1776131432882,-150.0,9.76e-05,2]
[420474765,1776131432895,-150.0,9.761e-05,2]
[420474766,1776131432908,-150.0,9.762e-05,2]
[420474767,1776131432923,-150.0,9.762e-05,2]
[420474768,1776131432935,-150.0,9.765e-05,2]
[420474769,1776131432957,-150.0,9.769e-05,2]
[420474770,1776131432968,-150.0,9.769e-05,2]
[420474771,1776131432982,-150.0,9.772e-05,2]
[420474772,1776131433019,-150.0,9.779e-05,2]
[420474773,1776131433052,-150.0,9.78e-05,2]
[420474774,1776131433096,-150.0,9.781e-05,2]
[420474775,1776131433133,-150.0,9.783e-05,2]
[420474776,1776131433175,-150.0,9.786e-05,2]
[420474777,1776131433207,-150.0,9.791e-05,2]
[420474778,1776131433223,-150.0,9.795e-05,2]
[420474779,1776131433248,-150.0,9.795e-05,2]
[420474780,1776131433265,-150.0,9.798e-05,2]
[420474781,1776131433287,-2315.482,9.799e-05,2]
[420474782,1776131433304,-156.611,9.799e-05,2]
[420474783,1776131433328,-1100.0,9.8e-05,3]
[420474784,1776131433342,-400.0,9.8e-05,3]
[420474785,1776131433364,-150.0,9.801e-05,2]
[420474786,1776131433376,-150.0,9.806e-05,2]
[420474787,1776131433391,-150.0,9.809e-05,2]
[420474788,1776131433409,-150.0,9.811e-05,2]
[420474789,1776131433425,-150.0,9.811e-05,2]
[420474790,1776131433463,-150.0,9.811e-05,2]
[420474791,1776131433518,-150.0,9.816e-05,2]
[420474792,1776131433539,-150.0,9.82e-05,2]
[420474793,1776131433561,-150.0,9.822e-05,2]
[420474794,1776131433582,-150.0,9.824e-05,2]
[420474795,1776131433617,-150.0,9.83e-05,2]
[420474796,1776131433636,-150.0,9.83e-05,2]
[420474797,1776131433681,-150.0,9.834e-05,2]
[420474798,1776131433694,-150.0,9.835e-05,2]
[420474799,1776131433715,-150.0,9.839e-05,2]
[420474800,1776131433727,-150.0,9.842e-05,2]
[420474801,1776131433770,-150.0,9.845e-05,2]
[420474802,1776131433783,-150.0,9.85e-05,2]
[420474803,1776131433802,-150.0,9.852e-05,2]
[420474804,1776131433819,-150.0,9.854e-05,2]
[420474805,1776131433837,-150.0,9.854e-05,2]
[420474806,1776131433859,-578.20924308,9.857e-05,2]
[420474807,1776131433873,-209.40437684,9.857e-05,2]
[420474808,1776131433895,-500.0,9.857e-05,2]
[420474809,1776131433908,-150.0,9.859e-05,2]
[420474810,1776131433933,-150.0,9.859e-05,2]
[420474811,1776131433947,-150.0,9.863e-05,2]
[420474812,1776131433967,-150.0,9.869e-05,2]
[420474813,1776131433988,-150.0,9.869e-05,2]
[420474814,1776131434004,-150.0,9.87e-05,2]
[420474815,1776131434028,-1600.0,9.871e-05,2]
[420474816,1776131434042,-150.0,9.871e-05,2]
[420474817,1776131434069,-150.0,9.878e-05,2]
[420474818,1776131434083,-150.0,9.884e-05,2]
[420474819,1776131434101,-150.0,9.884e-05,2]
[420474820,1776131434123,-150.0,9.884e-05,2]
[420474821,1776131434137,-150.0,9.888e-05,2]
[420474822,1776131434163,-150.0,9.888e-05,2]
[420474823,1776131434177,-150.0,9.898e-05,2]
[420474824,1776131434197,-2500.0,9.899e-05,2]
[420474825,1776131434212,-1923.7933,9.899e-05,2]
[420474826,1776131434225,-4154.5554,9.899e-05,2]
[420474827,1776131434244,-5599.63077983,9.899e-05,2]
[420474828,1776131434279,-12276.51852017,9.899e-05,2]
[420474829,1776131434297,-1000.0,9.9e-05,2]
[420474830,1776131434312,-874.74783622,9.9e-05,3]
[420474831,1776131434560,-125.25216378,9.9e-05,3]
[420474832,1776131434595,-200.0,9.9e-05,2]
[420474833,1776131434610,-75.19783622,9.9e-05,2]
[420474834,1776131434651,-124.80216378,9.9e-05,2]
[420474835,1776131434673,-1600.0,9.9e-05,3]
[420474836,1776131434687,-600.0,9.9e-05,3]
[420474837,1776131434703,-150.0,9.901e-05,2]
[420474838,1776131434724,-150.0,9.904e-05,2]
[420474839,1776131434743,-150.0,9.906e-05,2]
[420474840,1776131434756,-150.0,9.908e-05,2]
[420474841,1776131434769,-150.0,9.908e-05,2]
[420474842,1776131434791,-150.0,9.908e-05,2]
[420474843,1776131434804,-500.0,9.912e-05,2]
[420474844,1776131434817,-150.0,9.913e-05,2]
[420474845,1776131434845,-150.0,9.922e-05,2]
[420474846,1776131434859,-150.0,9.922e-05,2]
[420474847,1776131434882,-150.0,9.924e-05,2]
[420474848,1776131434897,-150.0,9.925e-05,2]
[420474849,1776131434938,-150.0,9.925e-05,2]
[420474850,1776131434961,-150.0,9.927e-05,2]
[420474851,1776131434984,-150.0,9.928e-05,2]
[420474852,1776131435004,-150.0,9.932e-05,2]
[420474853,1776131435026,-150.0,9.942e-05,2]
[420474854,1776131435054,-150.0,9.943e-05,2]
[420474855,1776131435067,-150.0,9.945e-05,2]
[420474856,1776131435089,-150.0,9.947e-05,2]
[420474857,1776131435101,-150.0,9.949e-05,2]
[420474858,1776131435114,-150.0,9.956e-05,2]
[420474859,1776131435134,-150.0,9.956e-05,2]
[420474860,1776131435160,-150.0,9.958e-05,2]
[420474861,1776131435177,-150.0,9.961e-05,2]
[420474862,1776131435204,-150.0,9.966e-05,2]
[420474863,1776131435223,-150.0,9.966e-05,2]
[420474864,1776131435237,-500.0,9.967e-05,2]
[420474865,1776131435258,-150.0,9.973e-05,2]
[420474866,1776131435283,-150.0,9.973e-05,2]
[420474867,1776131435296,-150.0,9.973e-05,2]
[420474868,1776131435314,-150.0,9.973e-05,2]
[420474869,1776131435329,-150.0,9.973e-05,2]
[420474870,1776131435342,-150.0,9.973e-05,2]
[420474871,1776131435358,-14196.0,9.973e-05,2]
[420474872,1776131435371,-500.0,9.973e-05,2]
[420474873,1776131435388,-500.0,9.973e-05,2]
[420474874,1776131435403,-160.01652647,9.973e-05,2]
[420474875,1776131435428,-224.01683285,9.973e-05,2]
[420474876,1776131435441,-500.0,9.973e-05,2]
[420474877,1776131435457,-500.46221355,9.973e-05,2]
[420474878,1776131435474,-500.0,9.973e-05,2]
[420474879,1776131435501,-500.0,9.973e-05,2]
[420474880,1776131435513,-500.0,9.973e-05,2]
[420474881,1776131435530,-500.0,9.973e-05,2]
[420474882,1776131435560,-1238.37,9.973e-05,2]
[420474883,1776131437270,-150.0,9.979e-05,2]
[420474884,1776131437315,-150.0,9.981e-05,2]
[420474885,1776131437351,-243.41,9.984e-05,2]
[420474886,1776131437396,-150.0,9.986e-05,2]
[420474887,1776131437430,-150.0,9.986e-05,2]
[420474888,1776131437442,-150.0,9.987e-05,2]
[420474889,1776131437454,-500.0,9.992e-05,2]
[420474890,1776131437476,-200.0,9.993e-05,2]
[420474891,1776131437487,-9552.16786547,9.993e-05,2]
[420474892,1776131437497,-721.12765535,9.993e-05,2]
[420474893,1776131437515,-1428.38747117,9.993e-05,2]
[420474894,1776131437526,-743.50770149,9.993e-05,2]
[420474895,1776131437535,-500.0,9.993e-05,2]
[420474896,1776131437547,-500.0,9.993e-05,2]
[420474897,1776131437561,-209.40437684,9.993e-05,2]
[420474898,1776131437577,-500.0,9.993e-05,2]
[420474899,1776131437587,-500.0,9.993e-05,2]
[420474900,1776131437617,-500.0,9.993e-05,2]
[420474901,1776131437628,-500.0,9.993e-05,2]
[420474902,1776131437642,-500.0,9.993e-05,2]
[420474903,1776131437654,-500.0,9.993e-05,2]
[420474904,1776131437674,-174.61919141,9.993e-05,2]
[420474905,1776131437684,-151.0,9.993e-05,2]
[420474906,1776131437696,-500.0,9.993e-05,2]
[420474907,1776131437706,-500.0,9.993e-05,2]
[420474908,1776131437719,-500.0,9.993e-05,2]
[420474909,1776131437730,-284.321418,9.993e-05,2]
[420474910,1776131437744,-150.0,9.996e-05,2]
[420474911,1776131437756,-150.0,9.997e-05,2]
[420474912,1776131437777,-1000.0,9.998e-05,2]
[420474913,1776131437787,-155.493,9.998e-05,2]
[420474914,1776131437797,-150.0,9.998e-05,2]
[420474915,1776131437814,-12411.57850863,9.999e-05,2]
[420474926,1776131438753,-147916.18980848,9.999e-05,2]
[420475070,1776131440833,2500.0,9.899e-05,2]
[420475076,1776131440893,-261.0,9.993e-05,2]
[420475078,1776131440904,-14695.67880236,9.999e-05,2]
[420475082,1776131440936,-53200.3487441,9.999e-05,2]
[420475085,1776131440964,-37134.32336128,9.999e-05,2]
[420475088,1776131440976,-500.0,9.999e-05,2]
[420475100,1776131441113,-4357.0,9.999e-05,2]
[420475120,1776131441355,-1255.20987881,9.999e-05,2]
[420475124,1776131441387,-649.29216344,9.999e-05,2]
[420475127,1776131441481,-630.7737724,9.999e-05,2]
[420475128,1776131441558,-15154.79563883,9.999e-05,2]
[420475130,1776131441606,-24808.55389974,9.999e-05,2]
[420475186,1776131443154,-2619.9222051,9.999e-05,2]
[420475232,1776131444466,500.0,9.702e-05,2]
[420475233,1776131446102,-504.03126163,9.976e-05,2]
[420475234,1776131446111,-22787.20324012,9.999e-05,2]
[420475235,1776131446238,-3797.86000066,9.999e-05,2]
[420475308,1776131488017,156.611,9.981e-05,2]
[420475309,1776131488096,1852.386,9.981e-05,2]
[420475310,1776131503646,500.0,9.44e-05,2]
[420475311,1776131504229,500.0,9.44e-05,2]
[420475312,1776131504262,500.0,9.44e-05,2]
[420475313,1776131504412,500.0,9.44e-05,2]
[420475314,1776131504455,500.0,9.44e-05,2]
[420475315,1776131504790,500.0,9.44e-05,2]
[420475316,1776131504846,500.0,9.44e-05,2]
[420475317,1776131506329,591.57268297,9.44e-05,2]
[420475318,1776131506397,500.0,9.44e-05,2]
[420475319,1776131506440,150.0,9.44e-05,2]
[420475320,1776131506497,500.0,9.44e-05,2]
[420475321,1776131506542,350.0,9.44e-05,2]
[420475322,1776131506636,150.0,9.44e-05,2]
[420475323,1776131506849,150.0,9.44e-05,2]
[420475324,1776131506950,154.2228643,9.44e-05,2]
[420475325,1776131507404,500.0,9.44e-05,2]
[420475326,1776131507467,500.0,9.44e-05,2]
[420475327,1776131507549,500.0,9.44e-05,2]
[420475328,1776131507607,445.21745273,9.44e-05,2]
[420475329,1776131507630,54.78254727,9.44e-05,2]
[420475330,1776131507683,500.0,9.44e-05,2]
[420475331,1776131507737,500.0,9.44e-05,2]
[420475332,1776131507783,500.0,9.44e-05,2]
[420475333,1776131507841,500.0,9.44e-05,2]
[420475334,1776131507882,500.0,9.44e-05,2]
[420475335,1776131507924,200.0,9.056e-05,2]
[420475336,1776131507985,500.0,9.44e-05,2]
[420475337,1776131508039,500.0,9.44e-05,2]
[420475338,1776131508111,500.0,9.44e-05,2]
[420475339,1776131508171,500.0,9.44e-05,2]
[420475340,1776131508292,500.0,9.44e-05,2]
[420475341,1776131508350,500.0,9.44e-05,2]
[420475342,1776131508449,500.0,9.44e-05,2]
[420475343,1776131508486,500.0,9.44e-05,2]
[420475344,1776131508642,500.0,9.44e-05,2]
[420475345,1776131508687,500.0,9.44e-05,2]
[420475346,1776131508761,500.0,9.44e-05,2]
[420475347,1776131508820,559.00808665,9.44e-05,2]
[420475348,1776131508988,500.0,9.44e-05,2]
[420475349,1776131509022,150.0,9.44e-05,2]
[420475350,1776131509244,500.0,9.44e-05,2]
[420475351,1776131510606,36.21936608,9.44e-05,2]
[420475352,1776131510628,463.78063392,9.44e-05,2]
[420475353,1776131511686,500.0,9.44e-05,2]
[420475354,1776131513495,500.0,9.44e-05,2]
[420475355,1776131514493,515.04360717,9.44e-05,2]
[420475356,1776131526652,275.0,9.44e-05,3]
[420475357,1776131528583,90.90990267,9.44e-05,3]
[420475358,1776131528610,73.09009733,9.44e-05,3]
[420475359,1776131533218,164.0,9.44e-05,3]
[420475360,1776131562586,171.88,9.051e-05,2]
[420475361,1776131585947,247.0,9.051e-05,3]
[420475362,1776131591716,164.0,9.051e-05,3]
[420475363,1776131643130,1253.43,9.021e-05,2]
[420475364,1776131647314,248.0,9.051e-05,3]
[420475365,1776131705665,236.0,9.051e-05,3]
[420475366,1776131708040,93.25685074,9.051e-05,3]
[420475367,1776131708068,69.74314926,9.051e-05,3]
[420475368,1776131715048,2000.0,9.013e-05,2]
[420475369,1776131826849,224.0,9.051e-05,3]
[420475370,1776131883324,170.79,7.198e-05,2]
[420475371,1776131885738,186.12379881,9.051e-05,3]
[420475372,1776131885796,26.87620119,9.051e-05,3]
[420475386,1776131947349,202.0,9.051e-05,3]
[420475387,1776131988843,-171.88,9.554e-05,2]
[420475388,1776131988882,-3358.46740201,9.64e-05,2]
[420475389,1776131988927,-6469.65259799,9.688e-05,2]
[420475390,1776131993059,-10000.0,9.688e-05,2]
[420475391,1776132005500,-7023.99805755,9.499e-05,2]
[420475392,1776132005533,-2976.00194245,9.499e-05,2]
[420475393,1776132005605,192.0,9.051e-05,3]
[420475394,1776132006099,164.0,9.051e-05,3]
[420475395,1776132009774,-2023.99805755,9.499e-05,2]
[420475396,1776132009803,-5000.0,9.499e-05,2]
[420475397,1776132009835,-2976.00194245,9.499e-05,2]
[420475398,1776132010476,-2023.99805755,9.499e-05,2]